bitfinex/quotes_BTCUSD_20241226
["timestamp","ask_amount","ask_price","bid_price","bid_amount"]
[1735173348091,0.39577411,99217.0,99216.0,0.12921456]
[1735173348339,0.39577411,99217.0,99216.0,0.14000678]
[1735173348552,0.34577411,99217.0,99216.0,0.14599987]
[1735173348770,0.34577411,99217.0,99216.0,0.24599987]
[1735173348771,0.007,99217.0,99216.0,0.24599987]
[1735173349183,0.01,99217.0,99216.0,0.24599987]
[1735173349627,0.09010498,99236.0,99222.0,0.483762]
[1735173349845,0.09010498,99236.0,99223.0,0.00847799]
[1735173350281,0.15,99249.0,99240.0,0.161223]
[1735173350495,0.15,99247.0,99236.0,0.16123]
[1735173350706,0.15,99245.0,99241.0,0.00746317]
[1735173350949,0.15,99245.0,99236.0,0.16123]
[1735173351366,0.15,99245.0,99238.0,0.161228]
[1735173351593,0.15,99243.0,99237.0,0.00746477]
[1735173351804,0.15,99241.0,99239.0,0.00746397]
[1735173352009,0.10398632,99240.0,99216.0,0.12921456]
[1735173352237,0.161238,99233.0,99218.0,0.16126]
[1735173352436,0.26522432,99233.0,99220.0,0.161257]
[1735173352639,0.10398632,99233.0,99222.0,0.161254]
[1735173352851,0.10398632,99233.0,99223.0,0.0073127]
[1735173353703,0.10498632,99233.0,99223.0,0.0073127]
[1735173353900,0.10398632,99233.0,99223.0,0.0073127]
[1735173354172,0.10398632,99233.0,99224.0,0.161251]
[1735173354456,0.10398632,99233.0,99223.0,0.0073127]
[1735173354457,0.10398632,99232.0,99223.0,0.0073127]
[1735173354659,0.023,99231.0,99225.0,0.0073119]
[1735173354798,0.023,99231.0,99222.0,0.003]
[1735173354799,0.161243,99229.0,99222.0,0.003]
[1735173354998,0.161246,99227.0,99216.0,0.12921456]
[1735173355215,0.10398632,99226.0,99216.0,0.12921456]
[1735173355416,0.161249,99225.0,99216.0,0.12921456]
[1735173355615,0.10398632,99224.0,99217.0,0.00733789]
[1735173356044,0.10398632,99224.0,99216.0,0.13021456]
[1735173356215,0.10398632,99224.0,99218.0,0.00734599]
[1735173356415,0.10398632,99224.0,99217.0,0.00734639]
[1735173356681,0.10398632,99224.0,99218.0,0.00734599]
[1735173357098,0.161225,99240.0,99219.0,0.00734697]
[1735173357307,0.10398632,99234.0,99220.0,0.00100776]
[1735173357522,0.10398632,99234.0,99220.0,0.00835433]
[1735173358389,0.10498632,99234.0,99220.0,0.00835433]
[1735173358568,0.001,99234.0,99221.0,0.00100776]
[1735173358770,0.001,99234.0,99221.0,0.00835393]
[1735173359213,0.24010498,99248.0,99231.0,0.161239]
[1735173359409,0.15,99246.0,99236.0,0.16123]
[1735173359618,0.10398632,99245.0,99236.0,0.16123]
[1735173359831,0.15,99244.0,99237.0,0.00732665]
[1735173360035,0.15,99242.0,99237.0,0.00732665]
[1735173360247,0.10398632,99243.0,99237.0,0.00732665]
[1735173360248,0.10398632,99241.0,99237.0,0.00732665]
[1735173360500,0.10398632,99241.0,99219.0,0.161258]
[1735173360768,0.10398632,99241.0,99238.0,0.00661252]
[1735173361096,0.10398632,99241.0,99229.0,0.161243]
[1735173361271,0.10398632,99241.0,99234.0,0.161235]
[1735173361695,0.10398632,99241.0,99235.0,0.00661187]
[1735173362361,0.10498632,99241.0,99230.0,0.16224764]
[1735173362582,0.10498632,99241.0,99236.0,0.00596824]
[1735173362789,0.10498632,99241.0,99232.0,0.161238]
[1735173362988,0.10898632,99241.0,99237.0,0.00596784]
[1735173363220,0.10398632,99241.0,99235.0,0.001]
[1735173363447,0.10398632,99241.0,99238.0,0.00596744]
[1735173363669,0.10398632,99241.0,99235.0,0.001]
[1735173363875,0.10398632,99241.0,99239.0,0.00899039]
[1735173364077,0.10398632,99241.0,99235.0,0.001]
[1735173364723,0.10398632,99241.0,99238.0,0.001]
[1735173365161,0.10398632,99241.0,99239.0,0.00899039]
[1735173365395,0.10398632,99241.0,99238.0,0.001]
[1735173365813,0.10398632,99241.0,99239.0,0.00899039]
[1735173366025,0.10398632,99241.0,99239.0,0.00999039]
[1735173366266,0.10398632,99241.0,99239.0,0.001]
[1735173366470,0.10398632,99241.0,99230.0,0.161241]
[1735173366686,0.10398632,99241.0,99238.0,0.001]
[1735173366893,0.10398632,99241.0,99231.0,0.00899571]
[1735173367104,0.10398632,99241.0,99232.0,0.161238]
[1735173367316,0.10398632,99241.0,99239.0,0.00999039]
[1735173367542,0.10398632,99241.0,99231.0,0.00100764]
[1735173367734,0.10398632,99241.0,99240.0,0.00898972]
[1735173367865,0.10398632,99241.0,99239.0,0.001]
[1735173368071,0.10398632,99241.0,99229.0,0.16225064]
[1735173368327,0.10398632,99241.0,99230.0,0.00899638]
[1735173368518,0.10398632,99241.0,99239.0,0.001]
[1735173368955,0.161226,99239.0,99220.0,0.322513]
[1735173369104,0.161226,99239.0,99210.0,0.17559421]
[1735173369105,0.10398632,99238.0,99224.0,0.161249]
[1735173369526,0.10398632,99238.0,99221.0,0.00100771]
[1735173369765,0.161237,99233.0,99222.0,0.161254]
[1735173369917,0.10398632,99232.0,99221.0,0.161254]
[1735173370745,0.10398632,99232.0,99217.0,0.161262]
[1735173370746,0.161239,99231.0,99217.0,0.161262]
[1735173371008,0.161239,99231.0,99210.0,0.27837346]
[1735173371009,0.161253,99223.0,99220.0,0.001]
[1735173371226,0.43824232,99221.0,99220.0,0.001]
[1735173371433,0.27698632,99221.0,99216.0,0.00021456]
[1735173371644,0.161262,99217.0,99216.0,0.00021456]
[1735173371849,0.28824832,99217.0,99216.0,0.00021456]
[1735173373228,0.29424832,99217.0,99216.0,0.00121456]
[1735173373483,0.28824832,99217.0,99216.0,0.00021456]
[1735173373890,0.29424832,99217.0,99216.0,0.00121456]
[1735173374093,0.29624832,99217.0,99216.0,0.00121456]
[1735173374311,0.30617866,99217.0,99216.0,0.00121456]
[1735173374512,0.30417866,99217.0,99216.0,0.00121456]
[1735173374709,0.30617866,99217.0,99216.0,0.00121456]
[1735173376721,0.45617866,99217.0,99216.0,0.00121456]
[1735173377772,0.78673965,99217.0,99216.0,0.00121456]
[1735173378196,0.78273965,99217.0,99216.0,0.00021456]
[1735173378347,0.78273965,99217.0,99216.0,0.00121456]
[1735173378551,0.78873965,99217.0,99216.0,0.00121456]
[1735173379183,0.96915245,99217.0,99216.0,0.00121456]
[1735173380389,0.45617866,99217.0,99216.0,0.00121456]
[1735173381298,0.5912063,99217.0,99216.0,0.00121456]
[1735173383485,0.45617866,99217.0,99216.0,0.00121456]
[1735173386340,0.45635046,99217.0,99216.0,0.00121456]
[1735173387354,0.43335046,99217.0,99216.0,0.00121456]
[1735173388571,0.45635046,99217.0,99216.0,0.00121456]
[1735173394334,0.53185046,99217.0,99216.0,0.00121456]
[1735173395028,0.6668781,99217.0,99216.0,0.00121456]
[1735173395497,0.77086442,99217.0,99216.0,0.00121456]
[1735173395744,0.91352286,99217.0,99216.0,5.6e-07]
[1735173395955,0.161287,99202.0,99201.0,8.57e-05]
[1735173396169,0.43827332,99202.0,99201.0,0.0006054]
[1735173397843,0.95025344,99202.0,99201.0,0.0006054]
[1735173398224,0.95925344,99202.0,99201.0,0.0006054]
[1735173398626,0.9794892,99202.0,99201.0,0.0006054]
[1735173398822,1.0549892,99202.0,99201.0,0.0006054]
[1735173399073,1.10574804,99202.0,99201.0,0.0006054]
[1735173399329,1.11474804,99202.0,99201.0,0.0006054]
[1735173399537,1.14598038,99202.0,99201.0,0.0006054]
[1735173399871,1.1419806,99202.0,99201.0,0.0006054]
[1735173400081,1.1459806,99202.0,99201.0,0.0006054]
[1735173400301,1.21873436,99202.0,99201.0,0.0006054]
[1735173400524,1.14198395,99202.0,99201.0,0.0006054]
[1735173400742,1.10174804,99202.0,99201.0,0.0006054]
[1735173400919,0.87623204,99202.0,99201.0,0.0006054]
[1735173401159,0.88523204,99202.0,99201.0,0.0006054]
[1735173401364,0.173,99201.0,99200.0,0.39202959]
[1735173401572,0.27698632,99201.0,99200.0,0.39202959]
[1735173402612,0.25798632,99201.0,99200.0,0.39202959]
[1735173402729,0.26698632,99201.0,99200.0,0.39202959]
[1735173403163,0.26298632,99201.0,99200.0,0.39202959]
[1735173403595,0.26698632,99201.0,99200.0,0.39202959]
[1735173403800,0.28998632,99201.0,99200.0,0.39202959]
[1735173403998,0.10798632,99201.0,99200.0,0.39202959]
[1735173404245,0.11698632,99201.0,99200.0,0.39202959]
[1735173404661,0.11298632,99201.0,99200.0,0.39202959]
[1735173404982,0.10798632,99201.0,99200.0,0.39202959]
[1735173405390,0.11098632,99201.0,99200.0,0.39202959]
[1735173405630,0.10398632,99201.0,99200.0,0.39202959]
[1735173406080,0.10498632,99201.0,99200.0,0.39202959]
[1735173406284,0.001,99201.0,99200.0,0.39202959]
[1735173406499,0.001,99201.0,99200.0,0.51262959]
[1735173406733,0.0001718,99217.0,99216.0,0.161264]
[1735173406941,0.0001718,99217.0,99216.0,0.281864]
[1735173407793,0.10415812,99217.0,99216.0,0.1206]
[1735173408818,0.10415812,99217.0,99216.0,0.1226]
[1735173409252,0.10515812,99217.0,99216.0,0.1206]
[1735173409464,0.10515812,99217.0,99216.0,0.12877584]
[1735173409671,0.10515812,99217.0,99216.0,0.13086174]
[1735173411468,0.10415812,99217.0,99216.0,0.12886174]
[1735173411918,0.10415812,99217.0,99216.0,0.13186174]
[1735173412295,0.10415812,99217.0,99216.0,0.12886174]
[1735173412497,0.10515812,99217.0,99216.0,0.12986174]
[1735173412700,0.10515812,99217.0,99216.0,0.13186174]
[1735173414293,0.10515812,99217.0,99216.0,0.12986174]
[1735173414600,0.10515812,99217.0,99216.0,0.13186174]
[1735173415313,0.10515812,99217.0,99216.0,0.12986174]
[1735173415619,0.10515812,99217.0,99216.0,0.13186174]
[1735173415817,0.10515812,99217.0,99216.0,0.12986174]
[1735173416048,0.10415812,99217.0,99216.0,0.12886174]
[1735173416356,0.10515812,99217.0,99216.0,0.13086174]
[1735173417475,0.10515812,99217.0,99216.0,0.12886174]
[1735173417680,0.10515812,99217.0,99216.0,0.13086174]
[1735173417911,0.10615812,99217.0,99216.0,0.13086174]
[1735173418362,0.10415812,99217.0,99216.0,0.08376174]
[1735173418544,0.10515812,99217.0,99216.0,0.08576174]
[1735173418743,0.10415812,99217.0,99216.0,0.01026174]
[1735173418988,0.10415812,99217.0,99216.0,0.00826174]
[1735173419175,0.10515812,99217.0,99216.0,0.00826174]
[1735173419432,0.10515812,99217.0,99216.0,0.01026174]
[1735173419847,0.10815812,99217.0,99216.0,0.01026174]
[1735173420450,0.10815812,99217.0,99216.0,0.00826174]
[1735173420977,0.10815812,99217.0,99216.0,0.01026174]
[1735173421142,0.10415812,99217.0,99216.0,0.00826174]
[1735173421640,0.0001718,99217.0,99216.0,0.0112696]
[1735173421900,0.0001718,99217.0,99216.0,0.0879696]
[1735173422139,0.0001718,99217.0,99216.0,0.0859696]
[1735173422392,0.0001718,99217.0,99216.0,0.0879696]
[1735173422635,0.0011718,99217.0,99216.0,0.0879696]
[1735173422885,0.0011718,99217.0,99216.0,0.08696174]
[1735173422886,0.10515812,99217.0,99216.0,0.08696174]
[1735173423131,0.0011718,99217.0,99216.0,0.0879696]
[1735173423646,0.0011718,99217.0,99216.0,0.0859696]
[1735173424093,0.0011718,99217.0,99216.0,0.0879696]
[1735173424321,0.0001718,99217.0,99216.0,0.0879696]
[1735173424608,0.0001718,99217.0,99216.0,0.1338696]
[1735173424866,0.22469159,99259.0,99240.0,0.161225]
[1735173424867,0.08987663,99259.0,99240.0,0.161225]
[1735173425111,0.08987663,99259.0,99258.0,0.161196]
[1735173425354,0.161145,99290.0,99272.0,0.161171]
[1735173425597,0.161143,99291.0,99272.0,0.161171]
[1735173425598,0.10398632,99285.0,99272.0,0.161171]
[1735173425796,0.10398632,99285.0,99273.0,0.00851817]
[1735173426234,0.15,99284.0,99269.0,0.161176]
[1735173426439,0.10398632,99283.0,99269.0,0.161176]
[1735173426614,0.15,99282.0,99271.0,0.161174]
[1735173426972,0.10398632,99281.0,99271.0,0.161174]
[1735173427148,0.21304935,99286.0,99272.0,0.00846352]
[1735173427149,0.10398632,99278.0,99272.0,0.00846352]
[1735173427371,0.173,99274.0,99272.0,0.00846352]
[1735173427586,0.43815732,99273.0,99253.0,0.161202]
[1735173427812,0.023,99265.0,99248.0,0.161211]
[1735173428019,0.023,99263.0,99258.0,0.001]
[1735173428233,0.023,99263.0,99245.0,0.161216]
[1735173428234,0.27698632,99261.0,99231.0,0.16887421]
[1735173428385,0.10398632,99246.0,99220.0,0.09027421]
[1735173428586,0.023,99241.0,99226.0,0.161246]
[1735173428795,0.184227,99239.0,99220.0,0.09027421]
[1735173428972,0.023,99237.0,99220.0,0.09027421]
[1735173429158,0.023,99232.0,99220.0,0.09027421]
[1735173429359,0.10398632,99231.0,99221.0,0.161256]
[1735173429950,0.10398632,99231.0,99227.0,0.161246]
[1735173430174,0.10398632,99231.0,99227.0,0.161244]
[1735173430389,0.10398632,99231.0,99226.0,0.001]
[1735173430592,0.184241,99230.0,99226.0,0.001]
[1735173430825,0.10398632,99229.0,99226.0,0.001]
[1735173431007,0.023,99228.0,99226.0,0.001]
[1735173431264,0.27698632,99227.0,99226.0,0.001]
[1735173431998,0.161248,99226.0,99216.0,8.59e-05]
[1735173432208,0.10398632,99224.0,99216.0,8.59e-05]
[1735173432415,0.023,99223.0,99220.0,0.001]
[1735173432618,0.10398632,99222.0,99216.0,8.59e-05]
[1735173433132,0.334256,99221.0,99216.0,8.59e-05]
[1735173433363,0.023,99218.0,99216.0,8.59e-05]
[1735173433499,0.43824832,99217.0,99216.0,8.59e-05]
[1735173433705,0.27698632,99217.0,99216.0,8.59e-05]
[1735173435002,0.27698632,99217.0,99216.0,0.0010859]
[1735173435662,0.27698632,99217.0,99216.0,0.0020859]
[1735173436107,0.27698632,99217.0,99216.0,8.59e-05]
[1735173436284,0.27798632,99217.0,99216.0,8.59e-05]
[1735173436489,0.27798632,99217.0,99216.0,0.0010859]
[1735173437180,0.27698632,99217.0,99216.0,8.59e-05]
[1735173438124,0.2870199,99217.0,99216.0,8.59e-05]
[1735173438534,0.2880199,99217.0,99216.0,8.59e-05]
[1735173440157,0.27798632,99217.0,99216.0,8.59e-05]
[1735173440367,0.25498632,99217.0,99216.0,0.1613499]
[1735173440575,0.25498632,99217.0,99216.0,0.17010507]
[1735173441027,0.25498632,99217.0,99216.0,0.00884107]
[1735173441653,0.25498632,99217.0,99216.0,8.59e-05]
[1735173441999,0.27698632,99217.0,99216.0,8.59e-05]
[1735173442230,0.27798632,99217.0,99216.0,0.0010859]
[1735173442438,0.27798632,99217.0,99216.0,0.0020859]
[1735173442862,0.27898632,99217.0,99216.0,8.59e-05]
[1735173444247,0.12898632,99217.0,99216.0,8.59e-05]
[1735173444447,0.10598632,99217.0,99216.0,8.59e-05]
[1735173444679,0.10598632,99217.0,99216.0,0.00884107]
[1735173444873,0.10598632,99217.0,99216.0,8.59e-05]
[1735173445078,0.10398632,99217.0,99216.0,0.00884107]
[1735173445256,0.10398632,99217.0,99216.0,0.0010859]
[1735173445453,0.10415792,99217.0,99216.0,0.00884107]
[1735173445656,0.10415792,99217.0,99216.0,8.59e-05]
[1735173445862,0.10415792,99217.0,99216.0,0.00985987]
[1735173446083,0.10415792,99217.0,99216.0,0.0030859]
[1735173446271,0.10415792,99217.0,99216.0,0.01185987]
[1735173446467,0.10415792,99217.0,99216.0,0.0030859]
[1735173446690,0.10415792,99217.0,99216.0,0.00985987]
[1735173446892,0.10415792,99217.0,99216.0,0.0030859]
[1735173447066,0.10415792,99217.0,99216.0,0.01185987]
[1735173447270,0.10415792,99217.0,99216.0,0.0030859]
[1735173447474,0.10415792,99217.0,99216.0,0.01185987]
[1735173448126,0.10415792,99217.0,99216.0,0.01085987]
[1735173448291,0.10415792,99217.0,99216.0,0.01185987]
[1735173448506,0.10415792,99217.0,99216.0,0.00985987]
[1735173448722,0.10415792,99217.0,99216.0,0.01185987]
[1735173451552,0.10415792,99217.0,99216.0,0.0030859]
[1735173452098,0.10415792,99217.0,99216.0,8.59e-05]
[1735173452497,0.10415792,99217.0,99216.0,0.1623499]
[1735173452702,0.10415792,99217.0,99216.0,0.17012387]
[1735173452901,0.10415792,99217.0,99216.0,0.00985987]
[1735173453102,0.10415792,99217.0,99216.0,0.01085987]
[1735173453661,0.12715792,99217.0,99216.0,0.01085987]
[1735173454067,0.12715792,99217.0,99216.0,0.0020859]
[1735173454275,0.12715792,99217.0,99216.0,0.0010859]
[1735173455164,0.12815792,99217.0,99216.0,0.0010859]
[1735173455379,0.12815792,99217.0,99216.0,8.59e-05]
[1735173455591,0.27815792,99217.0,99216.0,8.59e-05]
[1735173456067,0.27715792,99217.0,99216.0,8.59e-05]
[1735173456278,0.27815792,99217.0,99216.0,8.59e-05]
[1735173456491,0.28803222,99217.0,99216.0,8.59e-05]
[1735173458371,0.36313222,99217.0,99216.0,8.59e-05]
[1735173458557,0.36213222,99217.0,99216.0,8.59e-05]
[1735173458759,0.37013222,99217.0,99216.0,8.59e-05]
[1735173458963,0.37413222,99217.0,99216.0,8.59e-05]
[1735173459165,0.46607698,99217.0,99216.0,8.59e-05]
[1735173459391,0.47007698,99217.0,99216.0,8.59e-05]
[1735173459601,0.5740633,99217.0,99216.0,8.59e-05]
[1735173459811,0.6780633,99217.0,99216.0,8.59e-05]
[1735173460016,0.70928087,99217.0,99216.0,8.59e-05]
[1735173461655,1.02170024,99217.0,99216.0,8.59e-05]
[1735173461886,1.02170024,99217.0,99216.0,5.06e-06]
[1735173462331,1.06760024,99217.0,99216.0,5.06e-06]
[1735173462855,0.96361392,99217.0,99216.0,5.06e-06]
[1735173464002,0.95861392,99217.0,99216.0,5.06e-06]
[1735173465082,0.95361392,99217.0,99216.0,5.06e-06]
[1735173466173,0.94861392,99217.0,99216.0,5.06e-06]
[1735173467215,0.94361392,99217.0,99216.0,5.06e-06]
[1735173467683,0.94361392,99217.0,99200.0,0.39202959]
[1735173467684,0.09994476,99203.0,99200.0,0.33022939]
[1735173467902,0.09994476,99203.0,99171.0,0.0002858]
[1735173467903,0.09994476,99172.0,99171.0,0.0002858]
[1735173468121,0.53826608,99172.0,99171.0,0.0002858]
[1735173468331,0.53326608,99172.0,99171.0,0.0002858]
[1735173469200,0.63645849,99172.0,99171.0,0.0002858]
[1735173469411,0.44865633,99172.0,99171.0,0.0002858]
[1735173469619,0.42665633,99172.0,99171.0,0.0002858]
[1735173470628,0.42965633,99172.0,99171.0,0.0002858]
[1735173470835,0.45165633,99172.0,99171.0,0.0002858]
[1735173471302,0.45665633,99172.0,99171.0,0.0002858]
[1735173471726,0.45165633,99172.0,99171.0,0.0002858]
[1735173471933,0.45265633,99172.0,99171.0,0.0002858]
[1735173472376,0.45165633,99172.0,99171.0,0.0002858]
[1735173472835,0.45465633,99172.0,99171.0,0.0002858]
[1735173473044,0.53238776,99172.0,99171.0,0.0002858]
[1735173473255,0.52938776,99172.0,99171.0,0.0002858]
[1735173473663,0.53738776,99172.0,99171.0,0.0002858]
[1735173474263,0.45665633,99172.0,99171.0,0.0002858]
[1735173474467,0.45265633,99172.0,99171.0,0.0002858]
[1735173474909,0.46065633,99172.0,99171.0,0.0002858]
[1735173475766,0.45665633,99172.0,99171.0,0.0002858]
[1735173476329,0.44865633,99172.0,99171.0,0.0002858]
[1735173476733,0.45665633,99172.0,99171.0,0.0002858]
[1735173477158,0.65199394,99172.0,99171.0,0.0002858]
[1735173477534,0.64799394,99172.0,99171.0,0.0002858]
[1735173477947,0.65199394,99172.0,99171.0,0.0002858]
[1735173478301,0.63999394,99172.0,99171.0,0.0002858]
[1735173478626,0.64499394,99172.0,99171.0,0.0002858]
[1735173479046,0.45365633,99172.0,99171.0,0.0002858]
[1735173479251,0.78481203,99172.0,99171.0,0.0002858]
[1735173479454,0.15,99158.0,99151.0,0.0002]
[1735173479773,0.173,99156.0,99151.0,0.0002]
[1735173479959,0.10398632,99155.0,99151.0,0.0002]
[1735173480089,0.023,99154.0,99151.0,0.0002]
[1735173480320,0.10398632,99153.0,99151.0,0.0002]
[1735173480618,0.023,99152.0,99151.0,0.0002]
[1735173480803,0.12698632,99152.0,99151.0,0.0002]
[1735173480939,0.10398632,99152.0,99151.0,0.0002]
[1735173481136,0.10398632,99152.0,99151.0,0.00525524]
[1735173481591,0.002,99153.0,99152.0,0.24862324]
[1735173481793,0.08975128,99172.0,99152.0,0.24862324]
[1735173481961,0.10398632,99171.0,99160.0,0.161354]
[1735173482167,0.10398632,99171.0,99161.0,0.161353]
[1735173482431,0.10398632,99171.0,99162.0,0.0822]
[1735173483153,0.15,99170.0,99163.0,0.16135]
[1735173483359,0.12698632,99169.0,99162.0,0.0822]
[1735173483565,0.26533332,99165.0,99162.0,0.0822]
[1735173483778,0.10398632,99165.0,99162.0,0.0822]
[1735173483921,0.023,99164.0,99162.0,0.0832]
[1735173484142,0.10398632,99163.0,99162.0,0.0832]
[1735173484348,0.10398632,99163.0,99162.0,0.0822]
[1735173484552,0.12698632,99163.0,99162.0,0.0822]
[1735173484748,0.12698632,99163.0,99162.0,0.0832]
[1735173486176,0.13700616,99163.0,99162.0,0.0832]
[1735173486580,0.28900616,99163.0,99162.0,0.0832]
[1735173486794,0.28700616,99163.0,99162.0,0.0822]
[1735173486996,0.334352,99162.0,99152.0,0.0808]
[1735173487175,0.173,99160.0,99152.0,0.0808]
[1735173487393,0.334352,99162.0,99152.0,0.0808]
[1735173487394,0.023,99158.0,99152.0,0.0808]
[1735173487568,0.10398632,99157.0,99152.0,0.0808]
[1735173487982,0.023,99156.0,99152.0,0.0808]
[1735173488179,0.10398632,99155.0,99152.0,0.0808]
[1735173488648,0.10398632,99155.0,99152.0,0.0818]
[1735173490287,0.184365,99154.0,99152.0,0.0808]
[1735173490499,0.184365,99154.0,99152.0,0.0818]
[1735173490500,0.12698632,99153.0,99152.0,0.0818]
[1735173490888,0.12698632,99153.0,99152.0,0.0808]
[1735173493395,0.12898632,99153.0,99152.0,0.0808858]
[1735173493871,0.12698632,99153.0,99152.0,0.0808858]
[1735173494121,0.12698632,99153.0,99152.0,0.0818858]
[1735173494379,0.12698632,99153.0,99152.0,0.0010858]
[1735173494591,0.38462971,99153.0,99152.0,0.0010858]
[1735173494805,0.47649009,99153.0,99152.0,0.0010858]
[1735173495223,0.48413083,99153.0,99152.0,0.0010858]
[1735173495695,0.48913083,99153.0,99152.0,0.0010858]
[1735173495907,0.48413083,99153.0,99152.0,0.0010858]
[1735173496117,1.03953129,99153.0,99152.0,8.58e-05]
[1735173496326,1.04853129,99153.0,99152.0,8.58e-05]
[1735173496533,0.1,99142.0,99110.0,0.16308904]
[1735173496746,0.1,99142.0,99110.0,0.00165404]
[1735173496747,0.023,99123.0,99110.0,0.00165404]
[1735173496963,0.023,99121.0,99112.0,0.161433]
[1735173497171,0.023,99121.0,99115.0,0.161427]
[1735173497172,0.023,99119.0,99115.0,0.161427]
[1735173497348,0.10398632,99118.0,99115.0,0.161427]
[1735173497555,0.12698632,99118.0,99117.0,0.161425]
[1735173497768,0.10398632,99118.0,99117.0,0.1619449]
[1735173497998,0.10398632,99118.0,99117.0,0.16961365]
[1735173498659,0.10398632,99118.0,99117.0,0.00818865]
[1735173498660,0.27698632,99118.0,99117.0,0.00818865]
[1735173498872,0.28711019,99118.0,99117.0,0.0005199]
[1735173499721,0.28711019,99118.0,99117.0,0.0015199]
[1735173500117,0.28711019,99118.0,99117.0,0.0005199]
[1735173500327,0.28811019,99118.0,99117.0,0.0005199]
[1735173502702,0.28711019,99118.0,99117.0,0.0005199]
[1735173502901,0.29611019,99118.0,99117.0,0.0005199]
[1735173503409,0.28711019,99118.0,99117.0,0.0005199]
[1735173503655,0.29611019,99118.0,99117.0,0.0005199]
[1735173503901,0.29211019,99118.0,99117.0,0.0005199]
[1735173504140,0.29311019,99118.0,99117.0,0.0005199]
[1735173504384,0.28711019,99118.0,99117.0,0.0005199]
[1735173504631,0.29011019,99118.0,99117.0,0.0005199]
[1735173504886,0.29711019,99118.0,99117.0,0.0005199]
[1735173505813,0.28711019,99118.0,99117.0,0.0005199]
[1735173506014,0.28711019,99118.0,99117.0,0.0006057]
[1735173506179,0.30011019,99118.0,99117.0,0.0006057]
[1735173506381,0.29111019,99118.0,99117.0,0.0006057]
[1735173506581,0.28711019,99118.0,99117.0,0.0006057]
[1735173506814,0.29611019,99118.0,99117.0,0.0006057]
[1735173506966,0.29011019,99118.0,99117.0,0.0006057]
[1735173507482,0.29411019,99118.0,99117.0,0.0006057]
[1735173507734,0.28698632,99118.0,99117.0,0.0006057]
[1735173507972,0.26398632,99118.0,99117.0,0.0006057]
[1735173508150,0.11398632,99118.0,99117.0,0.0469057]
[1735173508364,0.11398632,99118.0,99117.0,0.05503319]
[1735173508820,0.11098632,99118.0,99117.0,0.00873319]
[1735173509032,0.11098632,99118.0,99117.0,0.0006057]
[1735173509240,0.12998632,99118.0,99117.0,0.0006057]
[1735173509492,0.13298632,99118.0,99117.0,0.0006057]
[1735173509697,0.12998632,99118.0,99117.0,0.0006057]
[1735173509848,0.13098632,99118.0,99117.0,0.0006057]
[1735173510308,0.12798632,99118.0,99117.0,0.0006057]
[1735173510533,0.13098632,99118.0,99117.0,0.0006057]
[1735173512016,0.12998632,99118.0,99117.0,0.0006057]
[1735173512229,0.12698632,99118.0,99117.0,0.0006057]
[1735173512426,0.13098632,99118.0,99117.0,0.0006057]
[1735173512625,0.12798632,99118.0,99117.0,0.0006057]
[1735173513009,0.13098632,99118.0,99117.0,0.0006057]
[1735173513254,0.12998632,99118.0,99117.0,0.0006057]
[1735173513656,0.13798632,99118.0,99117.0,0.0006057]
[1735173513823,0.13498632,99118.0,99117.0,0.0006057]
[1735173514031,0.14198632,99118.0,99117.0,0.0006057]
[1735173514858,0.13998632,99118.0,99117.0,0.0006057]
[1735173515137,0.14298632,99118.0,99117.0,0.0006057]
[1735173515341,0.12998632,99118.0,99117.0,0.0006057]
[1735173515733,0.13298632,99118.0,99117.0,0.0006057]
[1735173515919,0.12998632,99118.0,99117.0,0.0006057]
[1735173516122,0.12698632,99118.0,99117.0,0.0006057]
[1735173516327,0.13498632,99118.0,99117.0,0.0006057]
[1735173516752,0.13798632,99118.0,99117.0,0.0006057]
[1735173517856,0.13698632,99118.0,99117.0,0.0006057]
[1735173518064,0.13798632,99118.0,99117.0,0.0006057]
[1735173518266,0.28798632,99118.0,99117.0,0.0006057]
[1735173519161,0.26498632,99118.0,99117.0,0.0006057]
[1735173520640,0.28798632,99118.0,99117.0,0.0006057]
[1735173520948,0.28698632,99118.0,99117.0,0.0006057]
[1735173521127,0.27698632,99118.0,99117.0,0.0006057]
[1735173522179,0.28098632,99118.0,99117.0,0.0006057]
[1735173522401,0.30367919,99118.0,99117.0,0.0006057]
[1735173522903,0.30567919,99118.0,99117.0,0.0006057]
[1735173523316,0.27998632,99118.0,99117.0,0.0006057]
[1735173523526,0.25698632,99118.0,99117.0,0.0006057]
[1735173524146,0.25798632,99118.0,99117.0,0.0006057]
[1735173524971,0.28098632,99118.0,99117.0,0.0006057]
[1735173527419,0.27998632,99118.0,99117.0,0.0006057]
[1735173528001,0.12998632,99118.0,99117.0,0.0006057]
[1735173528215,0.12698632,99118.0,99117.0,0.0006057]
[1735173528442,0.12698632,99118.0,99117.0,0.00892595]
[1735173528645,0.12798632,99118.0,99117.0,0.0016057]
[1735173529065,0.10398632,99118.0,99117.0,0.0016057]
[1735173529867,0.10415812,99118.0,99117.0,0.0016057]
[1735173530812,0.10415812,99118.0,99117.0,0.00992595]
[1735173531076,0.10415812,99118.0,99117.0,0.0016057]
[1735173532062,0.10415812,99118.0,99117.0,0.00992595]
[1735173532688,0.10415812,99118.0,99117.0,0.0016057]
[1735173534111,0.10415812,99118.0,99117.0,0.05772595]
[1735173534112,0.0001718,99118.0,99117.0,0.05772595]
[1735173534314,0.0001718,99118.0,99117.0,0.1272057]
[1735173534516,0.0001718,99118.0,99117.0,0.13550611]
[1735173534718,0.08973048,99135.0,99127.0,0.1256]
[1735173534920,0.08973048,99135.0,99134.0,0.286997]
[1735173535374,0.08973048,99135.0,99134.0,0.29551435]
[1735173535833,0.08973048,99152.0,99134.0,0.29551435]
[1735173536125,0.10398632,99151.0,99145.0,0.161378]
[1735173536382,0.10398632,99151.0,99139.0,0.161388]
[1735173536864,0.10398632,99151.0,99140.0,0.00851335]
[1735173537110,0.023,99150.0,99140.0,0.00851335]
[1735173537351,0.023,99148.0,99145.0,0.002]
[1735173537608,0.184378,99146.0,99145.0,0.002]
[1735173537823,0.023,99143.0,99126.0,0.0778]
[1735173538027,0.023,99141.0,99140.0,0.001]
[1735173538197,0.12698632,99141.0,99140.0,0.001]
[1735173538561,0.0001718,99153.0,99140.0,0.001]
[1735173538562,0.003,99151.0,99140.0,0.162387]
[1735173538693,0.0001718,99153.0,99141.0,0.00100855]
[1735173538694,0.10398632,99150.0,99141.0,0.00100855]
[1735173538899,0.10398632,99150.0,99147.0,0.1256]
[1735173539102,0.10398632,99150.0,99148.0,0.00835258]
[1735173539305,0.10398632,99150.0,99149.0,0.161373]
[1735173539582,0.10398632,99150.0,99149.0,0.00835191]
[1735173539997,0.10398632,99150.0,99147.0,0.1256]
[1735173540220,0.10398632,99150.0,99149.0,0.00887181]
[1735173540436,0.10398632,99150.0,99149.0,0.0005199]
[1735173540643,0.10398632,99150.0,99149.0,0.00987181]